bitfinex-derivatives/quotes_ETHF0:USTF0_20260113
["timestamp","ask_amount","ask_price","bid_price","bid_amount"]
[1768312491274,1.12959148,3148.1,3146.5,1.35518013]
[1768312491575,0.14132833,3148.1,3146.5,1.35518013]
[1768312492277,0.14132833,3148.1,3146.9,1.45581377]
[1768312494084,0.14132833,3148.8,3146.9,1.61485377]
[1768312494281,0.98797581,3148.7,3146.9,0.15904]
[1768312494588,0.14132833,3148.0,3146.5,1.35518013]
[1768312494774,0.14132833,3147.7,3146.5,1.35518013]
[1768312500582,0.14132833,3147.7,3146.5,0.00318013]
[1768312501873,1.45581377,3147.5,3146.5,0.00318013]
[1768312502076,1.45581377,3147.5,3145.9,1.351]
[1768312502077,0.14132833,3147.1,3145.9,1.351]
[1768312503093,0.14491146,3147.1,3145.9,1.35380031]
[1768312505286,0.14491146,3147.1,3145.9,0.00280031]
[1768312507991,0.13836531,3146.8,3145.9,0.00280031]
[1768312509094,0.13836531,3146.8,3145.9,0.00176256]
[1768312509291,1.07922935,3146.5,3145.9,0.00176256]
[1768312509491,1.07922935,3146.5,3145.6,0.14598]
[1768312509694,0.13836531,3146.8,3145.9,1.07922935]
[1768312509879,1.08281248,3147.1,3146.1,1.07922935]
[1768312510492,1.08281248,3147.1,3146.1,1.08154589]
[1768312510692,0.00358313,3147.1,3146.3,1.07922935]
[1768312511279,1.08281248,3147.1,3146.1,1.08154589]
[1768312513387,1.08281248,3147.1,3146.1,0.00231654]
[1768312515590,0.00358313,3147.1,3146.2,1.07922935]
[1768312516786,0.00358313,3147.1,3146.6,1.07922935]
[1768312516997,0.13985928,3148.0,3147.0,1.07922935]
[1768312517602,0.13985928,3148.0,3147.4,1.07922935]
[1768312517799,0.13985928,3148.0,3146.1,0.00231654]
[1768312517800,0.13985928,3148.0,3147.2,1.07922935]
[1768312518000,0.14280927,3148.0,3147.2,1.07922935]
[1768312520105,0.14280927,3148.0,3146.8,0.15904]
[1768312520307,1.22203862,3148.0,3147.1,1.07922935]
[1768312521307,1.07922935,3147.8,3146.8,0.15904]
[1768312522706,0.14280927,3148.0,3146.1,0.00231654]
[1768312522707,1.07922935,3147.4,3146.2,0.15908]
[1768312522906,1.07922935,3147.4,3146.5,1.07922935]
[1768312523209,1.07922935,3147.6,3146.5,1.07922935]
[1768312524509,1.07922935,3147.4,3146.4,1.07922935]
[1768312525706,1.21908863,3147.4,3146.2,1.23830935]
[1768312526013,1.07922935,3147.2,3146.2,1.23830935]
[1768312526611,1.07922935,3147.2,3146.1,0.00231654]
[1768312526914,0.13985928,3146.9,3146.1,0.00231654]
[1768312527101,1.21908863,3146.9,3146.1,0.00231654]
[1768312527613,1.07922935,3147.1,3146.2,1.07922935]
[1768312528010,1.07922935,3147.1,3146.1,1.08154589]
[1768312529605,1.07922935,3146.9,3146.1,0.00231654]
[1768312530004,1.21908863,3146.9,3146.1,0.00231654]
[1768312530512,1.07922935,3147.0,3146.1,1.08154589]
[1768312530706,1.07922935,3147.2,3146.1,1.08154589]
[1768312531006,0.13985928,3147.3,3146.1,1.08154589]
[1768312531212,1.21908863,3147.3,3146.3,1.07922935]
[1768312533115,1.07922935,3147.1,3146.1,1.08154589]
[1768312535315,0.13985928,3147.3,3146.1,0.00231654]
[1768312537720,0.14081519,3147.0,3146.1,0.00231654]
[1768312538217,1.21965122,3146.8,3146.1,0.00231654]
[1768312538718,0.14081519,3147.2,3146.1,0.00231654]
[1768312540121,1.21965122,3147.2,3146.1,0.00231654]
[1768312540324,0.14081519,3147.1,3146.1,0.00231654]
[1768312542024,10.38794999,3148.0,3145.6,0.14598]
[1768312542025,1.07883603,3146.6,3145.6,0.14598]
[1768312542226,10.38794999,3148.0,3144.5,8.81084212]
[1768312542227,0.14081519,3145.8,3144.5,4.68816]
[1768312543423,0.14081519,3145.8,3144.5,4.69085308]
[1768312548630,0.14081519,3146.3,3144.5,4.69085308]
[1768312548835,1.1309336,3146.2,3144.5,6.18351897]
[1768312549033,0.14081519,3146.2,3144.7,0.15915]
[1768312549631,0.14081519,3146.2,3144.8,0.15915]
[1768312554338,0.14081519,3147.1,3144.9,1.81096589]
[1768312554540,0.14081519,3146.9,3144.9,1.81096589]
[1768312554738,0.14081519,3146.7,3144.9,1.81096589]
[1768312555041,0.14081519,3146.7,3145.0,0.15914]
[1768312557037,0.14081519,3146.7,3145.1,0.15913]
[1768312561649,0.14081519,3146.7,3145.5,0.15911]
[1768312562243,0.14081519,3146.7,3144.9,0.15914]
[1768312563750,0.14081519,3146.5,3144.9,0.15914]
[1768312563950,0.14081519,3146.3,3144.9,0.15914]
[1768312564441,0.14081519,3146.3,3144.5,0.00269308]
[1768312564947,0.14180317,3146.1,3144.5,0.00269308]
[1768312565143,0.99198183,3146.0,3144.5,0.00269308]
[1768312565452,0.15907,3146.4,3144.5,0.00269308]
[1768312565453,0.14180317,3145.7,3144.5,0.00269308]
[1768312565747,0.14180317,3145.4,3144.5,0.00269308]
[1768312565942,0.14180317,3145.1,3143.9,0.15919]
[1768312566344,0.14180317,3145.1,3144.0,1.07988824]
[1768312566748,0.14180317,3145.1,3144.3,1.07988824]
[1768312566940,0.00311879,3145.7,3144.9,1.07988824]
[1768312567542,0.14180317,3146.7,3145.1,1.07988824]
[1768312567742,0.14180317,3146.5,3145.1,1.07988824]
[1768312567942,1.13408091,3146.4,3145.1,1.07988824]
[1768312568141,0.14180317,3146.8,3145.4,1.07988824]
[1768312568343,0.14180317,3146.6,3145.4,1.07988824]
[1768312568544,0.99226708,3146.5,3145.4,1.07988824]
[1768312568752,0.00340088,3146.6,3146.0,1.07988824]
[1768312568952,0.00340088,3146.6,3145.7,1.07988824]
[1768312569349,0.00340088,3146.6,3146.0,1.07988824]
[1768312569544,0.00340088,3146.6,3145.8,1.07988824]
[1768312571353,0.00340088,3146.6,3145.5,0.15911]
[1768312571849,0.00340088,3146.6,3145.6,0.1591]
[1768312573451,0.00340088,3146.6,3144.6,4.83258709]
[1768312573452,0.14180317,3147.8,3146.0,0.15908]
[1768312573764,0.14180317,3147.6,3145.3,1.46545047]
[1768312574054,1.65058709,3147.8,3145.3,1.46545047]
[1768312574055,0.14180317,3147.4,3145.5,0.15911]
[1768312574353,0.14410795,3147.4,3145.5,0.15911]
[1768312575756,0.14410795,3147.4,3145.8,0.1591]
[1768312579048,0.14410795,3147.4,3145.1,1.65058709]
[1768312579250,0.13506037,3146.2,3144.7,0.15915]
[1768312581354,0.13506037,3146.2,3144.4,3.181]
[1768312583963,0.13506037,3146.2,3144.4,3.34017]
[1768312589862,0.13506037,3146.2,3144.5,0.15916]
[1768312591461,0.13506037,3146.2,3144.4,3.29870785]
[1768312591661,0.13506037,3147.2,3144.5,0.11770785]
[1768312591860,0.13506037,3147.0,3144.8,0.15915]
[1768312592058,0.13506037,3146.8,3144.8,0.15915]
[1768312592260,0.13506037,3146.6,3144.8,0.15915]
[1768312592466,0.97891994,3146.5,3144.8,0.15915]
[1768312592764,0.13506037,3146.6,3144.8,0.15915]
[1768312593062,0.97890136,3146.5,3144.8,0.15915]
[1768312593263,0.13506037,3146.6,3144.5,0.11770785]
[1768312593563,0.13506037,3146.6,3145.0,0.15913]
[1768312597460,0.13501018,3146.5,3145.0,0.15913]
[1768312598158,0.13501018,3146.2,3145.0,0.15913]
[1768312598767,0.13501018,3146.2,3144.6,1.45732671]
[1768312598768,0.13501018,3146.2,3144.5,1.50516]
[1768312599165,0.13501018,3146.2,3144.6,0.15916]
[1768312599671,0.13501018,3146.2,3144.7,0.15915]
[1768312602059,6.475,3147.2,3144.3,0.00408751]
[1768312602060,0.13501018,3145.9,3144.3,0.00408751]
[1768312608374,0.13501018,3145.7,3144.3,0.00408751]
[1768312609677,0.13501018,3145.6,3144.3,0.00408751]
[1768312613265,1.08014241,3145.1,3144.3,0.00408751]
[1768312613470,1.08239171,3145.1,3144.3,0.00408751]
[1768312616081,0.0022493,3145.1,3144.3,0.00408751]
[1768312616273,0.0022493,3145.1,3144.4,1.08014241]
[1768312616575,0.0022493,3145.1,3144.3,0.00408751]
[1768312616777,0.0022493,3145.1,3144.5,1.08014241]
[1768312619382,0.0022493,3145.1,3144.3,1.08422992]
[1768312622186,0.0022493,3145.1,3144.3,0.00408751]
[1768312622392,0.0022493,3145.1,3144.3,1.08422992]
[1768312623602,0.0022493,3145.1,3144.3,0.00408751]
[1768312623786,0.13501018,3144.6,3144.3,0.00408751]
[1768312623986,0.13501018,3145.0,3144.0,1.08014241]
[1768312624187,0.13501018,3145.0,3143.8,1.5042]
[1768312624484,0.13501018,3145.0,3144.2,1.08014241]
[1768312624788,0.0022493,3145.1,3144.2,1.08014241]
[1768312624987,0.0022493,3145.1,3144.8,1.08014241]
[1768312625188,1.08014241,3145.7,3144.8,1.08014241]
[1768312625695,1.22213019,3145.7,3144.8,1.08014241]
[1768312626199,0.00225012,3145.7,3145.2,1.08014241]
[1768312626400,0.14198778,3146.7,3145.6,1.08014241]
[1768312626606,0.14198778,3146.7,3145.8,1.08014241]
[1768312626607,0.97989934,3146.6,3145.8,1.08014241]
[1768312626794,0.97989934,3146.5,3145.8,1.08014241]
[1768312627099,1.22213019,3146.7,3145.6,1.08014241]
[1768312627287,1.08014241,3146.5,3145.4,1.08014241]
[1768312627492,1.08014241,3146.3,3145.4,1.08014241]
[1768312627693,1.08014241,3146.3,3145.3,0.15912]
[1768312627694,1.08014241,3146.1,3145.3,0.15912]
[1768312627892,1.08014241,3146.1,3144.4,0.11591857]
[1768312627893,1.08014241,3145.9,3145.0,1.08014241]
[1768312628099,0.14198778,3146.2,3144.8,2.42514241]
[1768312628295,1.22213019,3145.7,3144.7,0.15915]
[1768312628499,1.08014241,3145.5,3144.6,3.182]
[1768312628705,1.08014241,3145.5,3144.6,4.26214241]
[1768312629598,1.08014241,3145.7,3144.2,0.00380633]
[1768312629802,1.08014241,3144.9,3144.2,0.00380633]
[1768312631007,1.22213019,3144.9,3144.2,0.00380633]
[1768312631504,0.14198778,3144.9,3144.2,0.00380633]
[1768312639912,0.14198778,3144.9,3143.3,1.34422]
[1768312640808,0.14198778,3144.9,3143.3,1.34811015]
[1768312643810,0.14198778,3144.9,3143.3,1.18889015]
[1768312644015,0.14198778,3144.9,3143.5,0.15921]
[1768312644214,0.14198778,3144.9,3143.6,0.15921]
[1768312644616,0.14198778,3144.9,3143.7,1.61769878]
[1768312644908,0.13554549,3145.6,3143.7,1.61769878]
[1768312645111,0.13554549,3145.3,3143.7,1.61769878]
[1768312645305,0.13554549,3145.3,3143.7,0.1592]
[1768312646614,0.13554549,3145.0,3143.7,0.1592]
[1768312651416,1.08041819,3144.7,3143.8,1.08041819]
[1768312656815,1.08041819,3144.7,3143.7,0.1592]
[1768312657016,1.08041819,3145.2,3143.3,1.18889015]
[1768312657017,1.08041819,3144.5,3143.3,0.00389015]
[1768312657217,1.08041819,3144.5,3143.5,1.08041819]
[1768312657615,0.13545084,3144.2,3143.3,0.00389015]
[1768312657917,0.13915697,3144.2,3143.3,1.08430834]
[1768312659006,1.08041819,3144.1,3143.3,1.08430834]
[1768312659214,1.08041819,3144.1,3143.3,0.00389015]
[1768312659409,1.22005625,3144.2,3143.3,0.00389015]
[1768312660209,1.22005625,3144.2,3142.9,1.343]
[1768312660210,1.08089928,3143.9,3142.7,0.15925]
[1768312660417,1.21635012,3143.9,3142.7,0.15925]
[1768312660620,0.13545084,3143.9,3142.7,0.15925]
[1768312661319,0.13545084,3143.9,3142.7,0.16281071]
[1768312668525,0.13545084,3143.9,3142.8,1.08089928]
[1768312673425,0.13545084,3143.9,3142.8,1.24014928]
[1768312673624,1.21635012,3143.9,3142.8,0.15925]
[1768312673928,1.21635012,3143.7,3142.7,0.00356071]
[1768312674435,0.13545084,3143.7,3142.7,0.00356071]
[1768312680230,0.13545084,3143.7,3142.8,1.08089928]
[1768312682436,0.13545084,3143.7,3142.7,0.00356071]
[1768312686235,0.14547813,3144.2,3143.0,1.08089928]
[1768312686536,1.11857607,3144.1,3143.0,1.08089928]
[1768312686735,0.141772,3144.1,3143.0,1.08089928]
[1768312687130,0.141772,3144.1,3142.8,0.15925]
[1768312687331,0.141772,3144.1,3142.9,1.08089928]
[1768312687539,0.141772,3144.1,3143.2,1.08089928]
[1768312692741,0.141772,3144.1,3143.0,1.08089928]
[1768312693842,0.00370613,3144.2,3143.0,1.08089928]
[1768312694743,0.00370613,3144.2,3142.9,0.15924]
[1768312695943,0.14759198,3144.2,3142.9,0.15924]
[1768312698646,0.14759198,3144.2,3142.8,1.08089928]
[1768312698647,0.14759198,3144.2,3143.2,1.08089928]
[1768312698838,0.00370613,3144.2,3143.2,1.08089928]
[1768312700249,0.00370613,3144.2,3143.1,0.15923]
[1768312700549,0.14759198,3144.2,3143.1,0.15923]
[1768312706665,0.14759198,3144.2,3143.2,1.08089928]
[1768312708252,0.14759198,3144.2,3143.1,0.15923]
[1768312716157,1.10843497,3144.1,3143.1,0.15923]
[1768312716459,0.13185887,3144.1,3143.1,0.15923]
[1768312721365,1.21269533,3144.1,3143.2,1.08083646]
[1768312723366,1.08083646,3143.7,3142.7,0.00356071]
[1768312723664,1.08083646,3143.5,3142.7,1.34256071]
[1768312726368,0.13185887,3143.6,3142.8,1.08083646]
[1768312727078,0.97667708,3143.5,3142.0,0.14417588]
[1768312727367,2.05758172,3143.4,3142.4,1.08083646]
[1768312727573,1.08083646,3143.6,3142.6,1.08083646]
[1768312727775,0.9767564,3143.5,3142.6,1.08083646]
[1768312727965,0.9767564,3143.4,3142.6,1.08083646]
[1768312728167,1.08083646,3143.6,3142.6,1.08346968]
[1768312728472,1.08083646,3143.4,3142.6,0.00263322]
[1768312729073,1.08083646,3143.2,3142.6,0.00263322]
[1768312729373,1.08083646,3143.3,3142.6,0.00263322]
[1768312730674,1.08083646,3143.5,3142.6,0.00263322]
[1768312730876,0.97675996,3143.4,3142.6,0.00263322]
[1768312731072,1.08083646,3143.5,3142.6,0.00263322]
[1768312733065,1.08083646,3143.3,3142.6,0.00263322]
[1768312733268,1.08083646,3143.5,3142.6,0.00263322]
[1768312733474,1.08083646,3143.7,3142.8,1.08083646]
[1768312733777,1.08083646,3143.5,3142.7,1.08083646]
[1768312734375,1.08083646,3143.6,3142.6,0.00263322]
[1768312734573,1.08083646,3143.6,3142.7,1.08083646]
[1768312735077,1.08083646,3143.4,3142.6,0.00263322]
[1768312736976,1.08083646,3143.5,3142.6,0.00263322]
[1768312738270,0.13185887,3144.0,3142.6,0.00263322]
[1768312738476,1.08083646,3143.8,3142.9,1.08083646]
[1768312740990,1.08083646,3143.9,3142.9,1.08083646]
[1768312741284,1.08083646,3143.8,3142.9,1.08083646]
[1768312742684,1.08083646,3143.9,3142.9,1.08083646]
[1768312743683,0.15915,3144.7,3142.9,1.08083646]
[1768312743878,1.08083646,3144.0,3143.1,1.08083646]
[1768312744982,1.08083646,3144.0,3142.9,1.08083646]
[1768312745180,1.08083646,3144.4,3143.5,1.08083646]
[1768312745387,1.08454259,3144.2,3143.3,1.08083646]
[1768312746480,0.00370613,3144.2,3143.5,1.08083646]
[1768312749194,0.00370613,3144.2,3143.3,1.08083646]
[1768312749492,1.08454259,3144.2,3143.3,1.08083646]
[1768312749888,1.08454259,3144.2,3143.1,1.21894271]
[1768312750089,1.08083646,3144.0,3143.1,1.21894271]
[1768312751289,0.00370613,3144.2,3143.1,1.21894271]
[1768312751290,1.08454259,3144.2,3143.1,1.21894271]
[1768312751994,1.08083646,3144.0,3143.1,0.13810625]
[1768312752293,1.08083646,3144.0,3143.1,1.21894271]
[1768312753588,1.08083646,3143.6,3142.7,0.13810625]
[1768312753788,1.08083646,3143.6,3142.8,1.08083646]
[1768312754589,1.08083646,3143.8,3142.8,1.08083646]
[1768312755790,1.08454259,3144.2,3143.2,1.08083646]
[1768312755992,1.08454259,3144.2,3143.2,1.21783003]
[1768312757082,1.08454259,3144.2,3143.2,1.08083646]
[1768312757385,1.08083646,3144.0,3143.2,1.08083646]
[1768312757586,1.08083646,3144.0,3142.8,0.29623357]
[1768312757786,1.08083646,3144.0,3142.9,1.08083646]
[1768312758085,1.08083646,3143.8,3142.9,1.08083646]
[1768312759787,1.08083646,3143.9,3142.9,1.08083646]
[1768312760797,1.08083646,3144.1,3143.1,1.08083646]
[1768312761190,1.08083646,3144.1,3142.9,1.08083646]
[1768312761487,1.08083646,3143.7,3142.8,0.15924]
[1768312763298,1.08083646,3143.9,3142.8,0.15924]
[1768312764099,1.08083646,3143.6,3142.8,0.15924]
[1768312764399,1.08083646,3143.9,3142.8,1.24007646]
[1768312764597,1.08083646,3143.7,3142.8,1.24007646]
[1768312766002,1.08083646,3143.9,3142.8,1.24007646]
[1768312766701,0.00370613,3144.2,3142.8,1.24007646]
[1768312766702,0.14658255,3144.2,3142.8,1.24007646]
[1768312766901,1.08083646,3143.9,3143.0,1.08083646]
[1768312767301,0.14658255,3144.2,3142.8,0.15924]
[1768312767302,1.08083646,3144.1,3143.2,1.08083646]
[1768312767595,0.97509209,3144.0,3143.2,1.08083646]
[1768312767794,1.08083646,3144.1,3142.8,1.37707003]
[1768312767995,1.08083646,3144.1,3143.2,1.08083646]
[1768312769103,0.9754974,3144.0,3142.9,0.13699357]
[1768312769305,1.08083646,3144.1,3143.2,1.08083646]
[1768312769603,0.97552563,3144.0,3143.2,1.08083646]
[1768312769799,1.08083646,3144.1,3143.2,1.08083646]
[1768312770296,1.08083646,3144.1,3143.1,1.08083646]
[1768312770698,1.08083646,3144.1,3143.1,1.21783003]
[1768312772905,0.00370613,3144.2,3143.3,1.08083646]
[1768312773109,0.97578426,3144.1,3143.3,1.08083646]
[1768312773406,0.00370613,3144.2,3143.3,1.08083646]
[1768312773593,0.97592053,3144.1,3143.3,1.08083646]
[1768312773798,0.00370613,3144.2,3143.3,1.08083646]
[1768312774106,2.05675698,3144.1,3143.2,1.08083646]
[1768312774405,1.08083646,3143.9,3143.0,1.08083646]
[1768312777910,1.08083646,3144.1,3143.0,1.08083646]
[1768312778210,0.97612604,3144.0,3143.2,1.08083646]
[1768312778411,1.08083646,3144.1,3143.2,1.08083646]
[1768312778613,0.97617255,3144.0,3143.2,1.08083646]
[1768312778802,0.00370613,3144.2,3143.2,1.08083646]
[1768312779004,2.05700909,3144.1,3143.2,1.08083646]
[1768312779205,0.97617263,3144.0,3143.2,1.08083646]
[1768312779408,1.08083646,3144.1,3143.2,1.08083646]
[1768312779619,0.97622728,3144.0,3143.2,1.08083646]
[1768312779917,1.08083646,3144.1,3143.2,1.08083646]
[1768312780119,0.97622745,3144.0,3143.2,1.08083646]
[1768312780317,1.08083646,3144.1,3143.2,1.08083646]
[1768312780518,0.97623862,3144.0,3143.2,1.08083646]
[1768312780720,1.08083646,3144.1,3143.2,1.08083646]
[1768312780910,0.97623862,3144.0,3143.2,1.08083646]
[1768312781115,0.00370613,3144.2,3143.4,1.08083646]
[1768312781308,0.1367047,3145.2,3144.1,1.08001122]
[1768312781517,2.28613787,3145.5,3144.1,1.08001122]
[1768312781518,6.475,3145.5,3144.1,1.08001122]
[1768312781917,1.08001122,3145.3,3143.9,0.13207121]
[1768312782420,3.78344042,3145.1,3143.9,0.13207121]
[1768312784925,3.78344042,3145.1,3143.6,0.15921]
[1768312785131,1.08001122,3145.0,3143.7,1.336]
[1768312786430,3.92014512,3145.1,3143.7,1.336]
[1768312786628,5.00015634,3145.1,3143.7,2.41601122]
[1768312787429,3.92014512,3145.1,3143.7,2.41601122]
[1768312787622,5.00015634,3145.1,3143.7,2.41601122]
[1768312787817,5.00015634,3145.1,3143.7,1.336]
[1768312789719,5.00015634,3145.1,3143.7,2.41601122]
[1768312790830,5.00015634,3145.1,3143.7,1.336]
[1768312791022,1.22064004,3145.1,3143.7,1.336]
[1768312792931,0.14062882,3145.1,3143.7,1.336]
[1768312795724,1.08001122,3144.5,3143.1,0.13207121]
[1768312795923,0.04005975,3145.0,3143.1,0.13207121]
[1768312795924,1.08001122,3144.3,3143.1,0.13207121]
[1768312800233,1.08001122,3144.0,3142.7,0.13207121]
[1768312800535,1.08001122,3143.7,3142.7,0.13207121]
[1768312800837,1.08001122,3144.0,3142.7,0.13207121]
[1768312801434,1.08001122,3144.0,3142.4,0.15927]
[1768312801435,1.08001122,3144.3,3142.8,1.21208243]
[1768312801631,0.96609143,3144.2,3143.4,1.08001122]
[1768312801838,1.08001122,3144.7,3143.5,0.13207121]
[1768312802132,0.96598422,3144.6,3143.5,0.13207121]
[1768312802336,1.08001122,3144.7,3143.5,0.13207121]
[1768312802634,1.08001122,3144.4,3143.1,0.13207121]
[1768312803339,1.08001122,3144.6,3143.1,0.13207121]
[1768312804739,1.08001122,3144.2,3143.1,0.13207121]
[1768312804943,1.08001122,3143.9,3143.1,0.13207121]
[1768312805137,1.08001122,3143.9,3142.7,0.14502571]
[1768312805441,1.08001122,3143.9,3142.1,1.335]
[1768312805442,1.08001122,3144.5,3143.1,0.14502571]
[1768312805634,0.96618272,3144.4,3143.1,0.14502571]
[1768312805837,0.96618272,3144.3,3143.1,0.14502571]
[1768312806039,1.08001122,3144.8,3143.3,0.14502571]
[1768312806340,0.96617162,3144.7,3143.3,0.14502571]
[1768312806538,0.00392412,3145.1,3143.9,0.14502571]
[1768312806742,0.96604411,3145.0,3143.9,0.14502571]
[1768312807041,1.08393534,3145.1,3143.9,0.14502571]
[1768312809045,0.00392412,3145.1,3144.2,0.14502571]
[1768312810840,0.00392412,3145.1,3143.7,1.23921122]
[1768312810841,0.00392412,3145.1,3143.7,0.30422571]
[1768312811047,0.00392412,3145.1,3143.8,0.14502571]
[1768312812042,1.08001122,3144.9,3143.8,0.14502571]
[1768312812639,1.08001122,3144.9,3143.3,1.334]
[1768312812640,1.08001122,3144.9,3143.4,0.14502571]
[1768312812842,0.01129752,3144.2,3143.4,0.14502571]
[1768312813743,1.08001122,3144.6,3143.4,0.14502571]
[1768312813940,0.01129752,3143.8,3143.4,0.14502571]
[1768312814848,1.08001122,3144.6,3143.4,0.14502571]
[1768312815753,1.08001122,3144.9,3143.4,0.14502571]
[1768312816848,0.9612339,3144.8,3143.4,0.14502571]
[1768312817043,1.08001122,3144.9,3143.4,0.14502571]
[1768312817249,0.96129758,3144.8,3143.4,0.14502571]
[1768312817451,1.08001122,3144.6,3143.4,0.14502571]
[1768312818651,1.08001122,3144.3,3143.4,0.14502571]
[1768312818848,1.08001122,3144.3,3143.3,1.334]
[1768312819251,0.04049027,3144.9,3143.3,1.334]
[1768312819553,1.08001122,3144.4,3143.3,1.334]
[1768312819746,1.08001122,3144.4,3143.2,3.183]
[1768312819946,1.08001122,3144.1,3142.9,0.15924]
[1768312820141,1.08001122,3144.1,3142.9,0.29620958]
[1768312820348,1.08001122,3144.2,3142.9,0.29620958]
[1768312821946,1.08001122,3143.9,3142.9,0.13696958]
[1768312823848,1.08001122,3143.6,3142.4,0.15926]
[1768312824356,1.08001122,3143.3,3141.9,0.13696958]
[1768312824849,1.08001122,3144.0,3142.1,0.13696958]
[1768312824850,1.11933533,3144.0,3142.1,0.13696958]
[1768312825054,1.08001122,3143.6,3142.3,1.2169808]
[1768312825250,1.08001122,3143.6,3142.4,0.13696958]
[1768312825646,1.08001122,3143.3,3142.4,0.13696958]
[1768312825956,1.08001122,3143.3,3142.4,0.00263347]
[1768312827651,1.08001122,3143.6,3142.4,0.00263347]
[1768312830256,1.08001122,3143.3,3142.4,0.00263347]
[1768312831046,1.08001122,3142.8,3141.6,0.13696958]
[1768312831247,1.08001122,3143.3,3141.8,1.2169808]
[1768312831461,1.08001122,3143.3,3141.8,0.13696958]
[1768312831656,1.08001122,3143.1,3141.8,0.13696958]
[1768312832042,1.08375112,3143.1,3141.8,0.14069992]
[1768312833555,1.08001122,3142.5,3141.8,0.14069992]
[1768312833762,1.08001122,3142.8,3141.8,0.14069992]
[1768312834354,1.08001122,3142.8,3141.7,0.1593]
[1768312834355,1.08001122,3142.8,3141.3,0.13696958]
[1768312834553,1.08001122,3142.5,3141.3,0.13696958]
[1768312834762,1.08001122,3142.6,3141.3,0.13696958]
[1768312835360,1.08001122,3142.6,3141.3,1.22048366]
[1768312835667,1.08001122,3142.6,3141.4,0.14284869]
[1768312835861,1.08001122,3142.8,3141.4,0.14284869]
[1768312836967,0.0037399,3143.1,3141.4,1.22285991]
[1768312837167,1.08001122,3142.9,3141.5,0.14284869]
[1768312837358,1.08001122,3142.7,3141.5,0.14284869]
[1768312837558,0.0037399,3143.1,3141.5,0.14284869]
[1768312837861,1.08001122,3142.7,3141.5,0.14284869]
[1768312838063,0.0037399,3143.1,3141.5,0.14284869]
[1768312838364,1.08001122,3142.9,3141.6,0.14284869]
[1768312838553,0.0037399,3143.1,3141.6,0.14284869]
[1768312838753,1.08001122,3142.6,3141.6,0.14284869]
[1768312839261,1.08001122,3142.7,3141.6,0.14284869]
[1768312839453,1.08001122,3142.8,3141.6,0.14284869]
[1768312840866,0.0037399,3143.1,3141.6,0.14284869]
[1768312841067,1.08001122,3142.9,3141.6,0.14284869]
[1768312841974,1.08001122,3142.6,3141.5,0.15931]
[1768312842157,0.04458749,3143.1,3141.5,0.15931]
[1768312842363,1.08001122,3142.5,3141.5,0.15931]
[1768312842762,1.08001122,3142.5,3141.3,0.00350286]
[1768312843379,1.08217934,3142.2,3141.3,0.00350286]
[1768312843586,1.08217934,3142.0,3141.3,0.00350286]
[1768312844281,1.08217934,3142.1,3141.3,0.00350286]
[1768312845693,1.08217934,3141.9,3141.3,0.00350286]
[1768312845882,1.08217934,3141.7,3140.8,0.14284869]
[1768312846081,1.08217934,3141.9,3140.9,1.08217934]
[1768312846283,1.08217934,3142.1,3140.9,1.08217934]
[1768312846582,1.08217934,3142.1,3141.1,1.08217934]
[1768312846777,1.08217934,3142.5,3141.5,1.08217934]
[1768312847190,1.08217934,3142.3,3141.2,0.14284869]
[1768312847388,1.08217934,3142.3,3141.3,1.08217934]
[1768312848486,1.08217934,3142.1,3141.2,0.14284869]
[1768312848688,1.08217934,3142.1,3141.2,1.22502803]
[1768312848988,1.08217934,3142.1,3141.1,0.00227623]
[1768312848989,1.08217934,3141.7,3141.1,0.00227623]
[1768312849791,1.08217934,3141.5,3140.7,1.08217934]
[1768312850092,1.08217934,3141.6,3140.7,1.08217934]
[1768312850286,1.08217934,3141.6,3140.5,0.15936]
[1768312850287,1.08217934,3141.8,3140.6,0.14284869]
[1768312850488,0.15925,3142.7,3141.1,1.08217934]
[1768312850686,1.08217934,3142.0,3141.1,1.08217934]
[1768312850880,1.08217934,3142.0,3141.1,1.08572363]
[1768312852190,1.08217934,3142.2,3141.1,1.08572363]
[1768312852486,1.08217934,3142.0,3141.1,0.00354429]
[1768312852693,1.08217934,3141.6,3141.1,0.00354429]
[1768312853588,1.08217934,3141.4,3140.5,1.22502803]
[1768312854194,0.04268689,3142.2,3140.5,1.22502803]
[1768312854385,1.08217934,3141.6,3140.5,1.22502803]
[1768312854586,1.08217934,3141.2,3140.5,0.00394786]
[1768312854798,1.08217934,3140.6,3139.7,0.1594]
[1768312854986,0.04354359,3141.4,3139.8,0.14284869]
[1768312854987,1.08217934,3141.1,3139.8,0.14284869]
[1768312855195,1.08217934,3140.9,3139.8,0.14284869]
[1768312855384,1.08217934,3140.9,3139.3,0.19827819]
[1768312855785,0.96606569,3140.8,3139.3,0.00285386]
[1768312855995,1.12429161,3140.9,3139.3,0.00285386]
[1768312856196,1.08469589,3140.9,3139.3,0.14570255]
[1768312856394,1.08217934,3140.4,3139.5,1.08217934]
[1768312856692,1.08217934,3140.4,3139.3,0.14570255]
[1768312856693,1.08469589,3140.9,3139.7,1.08217934]
[1768312856899,1.08469589,3140.9,3140.0,1.08217934]
[1768312857402,1.08217934,3140.7,3139.8,1.08217934]
[1768312857901,1.08217934,3140.7,3139.7,0.14284869]
[1768312858097,1.08217934,3140.7,3139.7,1.22502803]
[1768312858292,1.08217934,3140.3,3139.5,0.15942]
[1768312859008,1.08217934,3140.5,3139.5,1.24159934]
[1768312859302,1.08217934,3142.0,3140.6,0.14284869]
[1768312859598,1.08217934,3141.2,3140.2,1.08217934]
[1768312859793,1.08217934,3141.6,3140.1,0.14284869]
[1768312859794,1.08217934,3141.0,3140.1,1.38440803]
[1768312860096,1.08217934,3141.0,3140.1,1.24155934]
[1768312860300,1.08217934,3141.0,3139.8,3.186]
[1768312860301,0.00273624,3141.0,3139.8,3.186]
[1768312860498,0.00273624,3141.0,3139.6,1.47584869]
[1768312861189,1.08217934,3140.6,3139.6,2.55802803]
[1768312861493,1.08217934,3140.4,3139.4,1.08217934]
[1768312861694,1.08491558,3141.0,3139.3,0.00285386]
[1768312861695,1.08217934,3140.2,3139.3,0.00285386]
[1768312861897,1.08217934,3140.4,3139.4,1.08217934]
[1768312862403,1.08217934,3140.4,3139.3,1.0850332]
[1768312862602,1.08217934,3140.2,3139.3,1.0850332]
[1768312862803,1.08217934,3139.4,3138.6,0.14284869]
[1768312863000,0.15935,3140.8,3138.6,0.14284869]
[1768312863001,1.08217934,3139.6,3138.6,1.22502803]
[1768312863202,1.08217934,3140.4,3138.5,0.15946]
[1768312863498,0.9636337,3140.3,3138.7,0.14284869]
[1768312863805,1.08217934,3140.4,3138.7,0.14529636]
[1768312864006,0.9635921,3140.3,3138.7,0.14529636]
[1768312864309,1.08217934,3140.4,3138.7,0.00244767]
[1768312864502,1.08217934,3139.6,3138.7,0.00244767]
[1768312864799,1.08217934,3140.4,3139.0,1.08217934]
[1768312865104,1.08217934,3140.1,3139.0,1.08217934]
[1768312865305,1.46293571,3140.5,3138.8,0.14073225]
[1768312865505,1.46547994,3140.7,3138.8,0.14073225]